fUST/lending_fUST_20240804
["ID","MTS","AMOUNT","RATE_DAILY","PERIOD"]
[334111307,1722778352035,273.37336231,9.9e-05,2]
[334111308,1722778361483,273.37336231,9.9e-05,2]
[334111309,1722778370158,273.37336231,9.9e-05,2]
[334111310,1722778378352,273.37336231,9.9e-05,2]
[334111311,1722778387357,273.37336231,9.9e-05,2]
[334111312,1722778396528,273.37336231,9.9e-05,2]
[334111313,1722778405384,273.37336231,9.9e-05,2]
[334111314,1722778413664,273.37336231,9.9e-05,2]
[334111315,1722778422206,273.37336231,9.9e-05,2]
[334111316,1722778430565,273.37336231,9.9e-05,2]
[334111317,1722778439883,273.37336231,9.9e-05,2]
[334111318,1722778448872,273.37336231,9.9e-05,2]
[334111319,1722778457078,208.2657047,9.9e-05,2]
[334111320,1722778471374,13075.43404094,9.9e-05,2]
[334111321,1722778766563,3564.26584448,9.9e-05,2]
[334111322,1722778866560,3564.26584448,9.9e-05,2]
[334111323,1722778966585,3564.26584448,9.9e-05,2]
[334111324,1722779072576,3246.62456002,9.9e-05,2]
[334111325,1722779203737,500.0,9.999e-05,7]
[334111326,1722779250134,-309.39667648,0.0001,2]
[334111327,1722779250158,-1265.24086034,0.00013453,2]
[334111328,1722779253136,-966.24615356,0.00013453,2]
[334111329,1722779253161,-864.74375344,0.0001359,2]
[334111341,1722779366114,-218.5253307,0.00013501,2]
[334111342,1722779366139,-294.5019437,0.00013699,2]
[334111343,1722779366160,-263.43442812,0.00014,2]
[334111370,1722779432343,-69.51422709,0.00014247,2]
[334111433,1722779440371,-112.02288891,0.00014247,2]
[334111434,1722779440383,-468.510403,0.00014247,2]
[334111435,1722779440394,-3163.52594453,0.0001457,2]
[334111436,1722779440406,-153.0,0.00014577,2]
[334111437,1722779440417,-186.54831475,0.00014578,2]
[334111438,1722779440427,-153.0,0.000146,2]
[334111439,1722779440437,-300.0,0.00014667,2]
[334111440,1722779440447,-500.0,0.00014668,2]
[334111441,1722779440456,-500.0,0.00014668,2]
[334111442,1722779440466,-300.0,0.00014668,2]
[334111443,1722779440476,-281.70237117,0.00014668,2]
[334111444,1722779440486,-500.0,0.00014668,2]
[334111445,1722779440495,-486.20624799,0.00014668,2]
[334111447,1722779440505,-500.0,0.00014668,2]
[334111449,1722779440514,-44897.6304374,0.00014669,2]
[334111451,1722779440523,-186.54831475,0.0001467,2]
[334111453,1722779440533,-200.0,0.00014673,2]
[334111455,1722779440542,-500.0,0.00014676,2]
[334111457,1722779440552,-500.0,0.00014676,2]
[334111459,1722779440561,-500.0,0.00014676,2]
[334111461,1722779440570,-232.64888808,0.00014676,2]
[334111463,1722779440579,-500.0,0.00014676,2]
[334111465,1722779440588,-500.0,0.00014676,2]
[334111468,1722779440607,-500.0,0.00014676,2]
[334111470,1722779440616,-500.0,0.00014676,2]
[334111471,1722779440626,-500.0,0.00014676,2]
[334111472,1722779440635,-362.94441921,0.00014676,2]
[334111473,1722779440646,-500.0,0.00014676,2]
[334111474,1722779440656,-500.0,0.00014676,2]
[334111475,1722779440665,-526.06723139,0.00014676,2]
[334111476,1722779440675,-500.0,0.00014676,2]
[334111477,1722779440687,-502.54136392,0.00014676,2]
[334111478,1722779440698,-507.1117221,0.00014676,2]
[334111479,1722779440709,-500.0,0.00014676,2]
[334111480,1722779440721,-500.0,0.00014676,2]
[334111481,1722779440732,-500.0,0.00014676,2]
[334111482,1722779440745,-500.0,0.00014676,2]
[334111483,1722779440757,-500.0,0.00014676,2]
[334111484,1722779440768,-500.0,0.00014676,2]
[334111485,1722779440778,-500.0,0.00014676,2]
[334111486,1722779440789,-506.79221079,0.00014676,2]
[334111487,1722779440800,-500.0,0.00014676,2]
[334111488,1722779440810,-580.11517769,0.00014676,2]
[334111489,1722779440820,-503.70317355,0.00014676,2]
[334111490,1722779440829,-4144.04,0.00014676,2]
[334111491,1722779440839,-501.58892371,0.00014676,2]
[334111492,1722779440849,-500.0,0.00014676,2]
[334111493,1722779440858,-500.0,0.00014676,2]
[334111494,1722779440868,-529.8246672,0.00014676,2]
[334111495,1722779440877,-2616.95,0.00014676,2]
[334111496,1722779440887,-503.28484902,0.00014676,2]
[334111497,1722779440897,-500.0,0.00014676,2]
[334111498,1722779440908,-500.0,0.00014676,2]
[334111499,1722779440918,-500.0,0.00014676,2]
[334111500,1722779440928,-500.0,0.00014676,2]
[334111501,1722779440938,-500.0,0.00014676,2]
[334111502,1722779440949,-500.0,0.00014676,2]
[334111503,1722779440958,-500.0,0.00014676,2]
[334111504,1722779440968,-500.0,0.00014676,2]
[334111505,1722779440979,-500.0,0.00014676,2]
[334111506,1722779440990,-500.0,0.00014676,2]
[334111507,1722779441000,-423.26466097,0.00014676,2]
[334111508,1722779441009,-500.0,0.00014676,2]
[334111509,1722779441019,-500.0,0.00014677,2]
[334111510,1722779441029,-500.0,0.00014677,2]
[334111511,1722779441039,-500.0,0.00014677,2]
[334111512,1722779441048,-500.0,0.00014677,2]
[334111513,1722779441058,-1600.43,0.00014677,2]
[334111514,1722779441068,-500.0,0.00014677,2]
[334111515,1722779441078,-500.0,0.00014677,2]
[334111516,1722779441088,-500.0,0.00014677,2]
[334111517,1722779441097,-500.0,0.00014677,2]
[334111518,1722779441107,-722.59,0.00014677,2]
[334111519,1722779441116,-500.0,0.00014677,2]
[334111520,1722779441126,-500.0,0.00014677,2]
[334111521,1722779441136,-500.0,0.00014677,2]
[334111522,1722779441146,-500.0,0.00014677,2]
[334111523,1722779441161,-500.0,0.00014677,2]
[334111524,1722779441181,-368.76987272,0.00014677,2]
[334111525,1722779441190,-500.0,0.00014677,2]
[334111526,1722779441200,-2941.12,0.00014677,2]
[334111527,1722779441210,-1476.83,0.00014677,2]
[334111528,1722779441220,-500.0,0.00014678,2]
[334111529,1722779441230,-500.0,0.00014678,2]
[334111530,1722779441239,-500.0,0.00014678,2]
[334111531,1722779441249,-517.80535825,0.00014678,2]
[334111532,1722779441258,-500.0,0.00014678,2]
[334111533,1722779441268,-500.0,0.00014678,2]
[334111534,1722779441279,-500.0,0.00014678,2]
[334111535,1722779441289,-500.0,0.00014678,2]
[334111536,1722779441301,-500.0,0.00014678,2]
[334111537,1722779441310,-500.0,0.00014678,2]
[334111538,1722779441321,-500.0,0.00014678,2]
[334111539,1722779441330,-500.0,0.00014678,2]
[334111540,1722779441341,-500.0,0.00014678,2]
[334111541,1722779441354,-500.0,0.00014678,2]
[334111542,1722779441366,-500.0,0.00014678,2]
[334111543,1722779441375,-500.0,0.00014678,2]
[334111544,1722779441384,-500.0,0.00014678,2]
[334111545,1722779441393,-500.0,0.00014678,2]
[334111546,1722779441404,-500.0,0.00014678,2]
[334111547,1722779441414,-500.0,0.00014678,2]
[334111548,1722779441424,-500.0,0.00014678,2]
[334111549,1722779441434,-500.0,0.00014678,2]
[334111550,1722779441447,-500.0,0.00014678,2]
[334111551,1722779441459,-509.71574384,0.00014678,2]
[334111552,1722779441471,-304.50396055,0.00014678,2]
[334111553,1722779441482,-500.0,0.00014678,2]
[334111554,1722779441492,-513.15421694,0.00014678,2]
[334111555,1722779441504,-500.0,0.00014678,2]
[334111556,1722779441516,-500.0,0.00014678,2]
[334111557,1722779441527,-500.0,0.00014678,2]
[334111558,1722779441538,-500.0,0.00014678,2]
[334111559,1722779441549,-351.11674074,0.00014678,2]
[334111560,1722779441559,-500.0,0.00014678,2]
[334111561,1722779441572,-500.0,0.00014678,2]
[334111562,1722779441581,-202.52034298,0.00014678,2]
[334111563,1722779441593,-500.0,0.00014678,2]
[334111564,1722779441603,-500.0,0.00014678,2]
[334111565,1722779441613,-526.21660355,0.00014678,2]
[334111566,1722779441625,-569.39901067,0.00014678,2]
[334111567,1722779441635,-500.0,0.00014678,2]
[334111568,1722779441644,-500.0,0.00014678,2]
[334111569,1722779441655,-500.0,0.00014678,2]
[334111570,1722779441665,-500.0,0.00014678,2]
[334111571,1722779441676,-500.0,0.00014678,2]
[334111572,1722779441687,-500.0,0.00014678,2]
[334111573,1722779441841,-500.0,0.00014678,2]
[334111574,1722779441852,-500.0,0.00014678,2]
[334111575,1722779441862,-500.0,0.00014678,2]
[334111576,1722779441873,-500.0,0.00014678,2]
[334111577,1722779441885,-500.0,0.00014678,2]
[334111578,1722779441898,-500.0,0.00014678,2]
[334111579,1722779441910,-500.0,0.00014678,2]
[334111580,1722779441921,-500.0,0.00014678,2]
[334111581,1722779441931,-500.0,0.00014678,2]
[334111582,1722779441942,-500.0,0.00014678,2]
[334111583,1722779441954,-995.01,0.00014678,2]
[334111584,1722779441965,-500.0,0.00014678,2]
[334111585,1722779441974,-500.0,0.00014678,2]
[334111586,1722779441985,-500.0,0.00014678,2]
[334111587,1722779441994,-500.0,0.00014678,2]
[334111588,1722779442004,-500.0,0.00014678,2]
[334111589,1722779442014,-500.0,0.00014678,2]
[334111590,1722779442025,-500.0,0.00014678,2]
[334111591,1722779442036,-531.75,0.00014678,2]
[334111592,1722779442046,-1017.06,0.00014678,2]
[334111593,1722779442057,-414.36940853,0.00014678,2]
[334111618,1722779443339,-85.63059147,0.00014678,2]
[334111620,1722779443349,-500.0,0.00014678,2]
[334111622,1722779443359,-500.0,0.00014678,2]
[334111624,1722779443368,-530.21,0.00014678,2]
[334111626,1722779443378,-202.82737653,0.00014678,2]
[334111628,1722779443387,-500.0,0.00014678,2]
[334111630,1722779443397,-500.0,0.00014678,2]
[334111632,1722779443407,-1483.49761851,0.00014678,2]
[334112312,1722779454879,203.53829748,0.00013788,2]
[334112313,1722779460365,311.68,0.00010959,2]
[334112314,1722779470766,259.74,0.00010959,2]
[334112315,1722779481551,216.45,0.00010959,2]
[334112316,1722779492069,180.37,0.00010959,2]
[334112317,1722779502591,150.31,0.00010959,2]
[334112318,1722779513116,751.57,0.00010959,2]
[334112319,1722779753386,201.62365011,9.999e-05,2]
[334112320,1722779757555,188.04294313,9.999e-05,2]
[334112321,1722779764370,157.69808826,9.999e-05,2]
[334112322,1722779765729,848.96464521,9.999e-05,2]
[334112323,1722779767354,567.70648841,9.999e-05,2]
[334112324,1722779768191,663.78880537,9.999e-05,2]
[334112325,1722779772727,404.14300874,9.999e-05,2]
[334112326,1722779772773,154.91692567,9.999e-05,2]
[334112327,1722779773585,473.10809626,9.999e-05,2]
[334112328,1722779773657,240.95511553,9.999e-05,2]
[334112329,1722779774369,162.37713841,9.999e-05,2]
[334112330,1722779780351,288.23560711,9.999e-05,2]
[334112331,1722779780594,160.00381439,9.999e-05,2]
[334112332,1722779780835,156.62454437,9.999e-05,2]
[334112333,1722779783671,521.86930577,9.999e-05,2]
[334112334,1722779790826,162.35915212,9.999e-05,2]
[334112335,1722779839256,404.47935249,9.999e-05,2]
[334112336,1722780172015,155.12977809,9.999e-05,2]
[334112337,1722780258214,154.83742071,9.999e-05,2]
[334112338,1722780357025,154.83742071,9.999e-05,2]
[334112339,1722780430098,-154.83742071,0.0001212,2]
[334112340,1722780430121,-300.0,0.00012385,2]
[334112341,1722780430146,-300.0,0.00012385,2]
[334112342,1722780430169,-1011.72869852,0.00012386,2]
[334112343,1722780447172,-2111.19549269,0.00012386,2]
[334112344,1722780561136,-300.0,0.00012385,2]
[334112345,1722780561158,-300.0,0.00012385,2]
[334112346,1722780561185,-13140.28339199,0.00012386,2]
[334112347,1722780561207,-334.76256363,0.00012417,2]
[334112348,1722780570094,-166.02399837,0.00012417,2]
[334112349,1722780570120,-157.965443,0.00012818,2]
[334112350,1722780570145,-154.76012181,0.00013,2]
[334112351,1722780570168,-269.66609186,0.00013,2]
[334112352,1722780570190,-335.6564105,0.000132,2]
[334112353,1722780570210,-256.9383262,0.00013215,2]
[334112354,1722780570234,-157.965443,0.00013486,2]
[334112355,1722780570256,-10679.33302236,0.00013688,2]
[334112356,1722780570282,-3000.0,0.00013699,2]
[334112357,1722780570305,-157.73907238,0.00013699,2]
[334112361,1722780577035,154.83742071,9.999e-05,2]
[334112362,1722780607052,154.83742071,9.999e-05,2]
[334112424,1722780632846,-332.46028462,0.00013699,2]
[334112426,1722780632856,-153.0,0.00013741,2]
[334112428,1722780632867,-181.537116,0.00014247,2]
[334112430,1722780632878,-471.041138,0.00014247,2]
[334112432,1722780632888,-306.0,0.00014296,2]
[334112434,1722780632899,-590.6322226,0.00014296,2]
[334112436,1722780632909,-2768.08520149,0.00014332,2]
[334112438,1722780632919,-4324.22925954,0.00014336,2]
[334112440,1722780632928,-500.0,0.00014432,2]
[334112442,1722780632938,-2373.46871875,0.00014432,2]
[334112447,1722780632973,-1597.91128125,0.00014432,2]
[334112449,1722780632986,-2507.91,0.00014432,2]
[334112452,1722780632999,-500.0,0.00014432,2]
[334112454,1722780633009,-500.0,0.00014432,2]
[334112456,1722780633019,-294.257336,0.000145,2]
[334112458,1722780633028,-153.0,0.000145,2]
[334112460,1722780633038,-330.51361115,0.00014506,2]
[334112462,1722780633047,-186.54831475,0.00014565,2]
[334112463,1722780633058,-500.0,0.00014657,2]
[334112466,1722780633068,-69.84295685,0.00014657,2]
[334112509,1722780638477,-473.21000055,0.00014657,2]
[334113216,1722780752038,173.71508127,9.999e-05,2]
[334113217,1722780809560,358.44301073,9.999e-05,2]
[334113218,1722780809957,1778.78124669,9.999e-05,2]
[334113219,1722780820565,2633.82123644,9.999e-05,2]
[334113223,1722781630147,-300.0,9.998e-05,2]
[334113224,1722781630172,-34.04830184,9.998e-05,2]
[334113225,1722781631093,-265.95169816,9.998e-05,2]
[334113226,1722781631116,-1491.67066256,9.999e-05,2]
[334113227,1722781652140,-4188.45359321,9.999e-05,2]
[334113231,1722781745240,-267.19556557,9.899e-05,2]
[334113232,1722781745262,-300.0,9.998e-05,2]
[334113233,1722781745284,-300.0,9.998e-05,2]
[334113234,1722781745306,-2948.98206465,9.999e-05,2]
[334113235,1722781745330,-250.21012427,9.999e-05,2]
[334113236,1722781745352,-209.09286746,9.999e-05,2]
[334113237,1722781745373,-154.74467129,9.999e-05,2]
[334113238,1722781745395,-494.15268939,9.999e-05,2]
[334113239,1722781745416,-309.40901971,9.999e-05,2]
[334113240,1722781745437,-249.72515193,9.999e-05,2]
[334113241,1722781745458,-204.57207469,9.999e-05,2]
[334113242,1722781745480,-581.70781646,9.999e-05,2]
[334113243,1722781745503,-241.43535638,9.999e-05,2]
[334113244,1722781745529,-247.54428856,9.999e-05,2]
[334113245,1722781745551,-154.89002311,9.999e-05,2]
[334113246,1722781745574,-403.6719504,9.999e-05,2]
[334113247,1722781745596,-292.29573944,9.999e-05,2]
[334113248,1722781745619,-289.28985245,9.999e-05,2]
[334113249,1722781745654,-307.69100047,9.999e-05,2]
[334113250,1722781745676,-160.58259148,9.999e-05,2]
[334113251,1722781745698,-849.18218214,9.999e-05,2]
[334113252,1722781745719,-166.07680533,9.999e-05,2]
[334113253,1722781745740,-154.82195475,9.999e-05,2]
[334113254,1722781745761,-588.23943005,9.999e-05,2]
[334113255,1722781745783,-154.86314301,9.999e-05,2]
[334113256,1722781745805,-603.39156568,9.999e-05,2]
[334113257,1722781745828,-159.83522761,9.999e-05,2]
[334113258,1722781745849,-154.84231435,9.999e-05,2]
[334113259,1722781745870,-343.51591076,9.999e-05,2]
[334113260,1722781745891,-260.33157747,9.999e-05,2]
[334113261,1722781745913,-166.38808278,9.999e-05,2]
[334113262,1722781745934,-250.27905086,9.999e-05,2]
[334113263,1722781745956,-155.0861325,9.999e-05,2]
[334113264,1722781745977,-664.12635535,9.999e-05,2]
[334113265,1722781745999,-155.01664346,9.999e-05,2]
[334113266,1722781746020,-267.35906926,9.999e-05,2]
[334113267,1722781746042,-201.99778762,9.999e-05,2]
[334113268,1722781746066,-616.48837097,9.999e-05,2]
[334113269,1722781746088,-154.84072239,9.999e-05,2]
[334113270,1722781746109,-182.92546344,9.999e-05,2]
[334113271,1722781746131,-805.65848734,9.999e-05,2]
[334113272,1722781746153,-404.51278902,9.999e-05,2]
[334113273,1722781746174,-155.02087107,9.999e-05,2]
[334113274,1722781746195,-155.06716053,9.999e-05,2]
[334113275,1722781746217,-603.79164827,9.999e-05,2]
[334113276,1722781746238,-154.91286462,9.999e-05,2]
[334113277,1722781746259,-242.43840163,9.999e-05,2]
[334113278,1722781746281,-532.78015433,9.999e-05,2]
[334113279,1722781746302,-519.46703512,9.999e-05,2]
[334113280,1722781746325,-154.74467129,9.999e-05,2]
[334113281,1722781746345,-212.2060588,9.999e-05,2]
[334113282,1722781746366,-942.37062895,9.999e-05,2]
[334113283,1722781746388,-155.00714358,9.999e-05,2]
[334113284,1722781746409,-414.37884758,9.999e-05,2]
[334113285,1722781746431,-542.98825341,9.999e-05,2]
[334113286,1722781746453,-727.403836,9.999e-05,2]
[334113287,1722781746475,-245.54203643,9.999e-05,2]
[334113288,1722781746615,-155.58153767,0.0001,2]
[334113289,1722781746641,-154.82195475,0.0001,2]
[334113290,1722781746663,-200.0,0.0001,2]
[334113291,1722781746689,-250.0,0.00010096,2]
[334113292,1722781746714,-250.0,0.00010123,2]
[334113293,1722781746741,-250.0,0.00010151,2]
[334113294,1722781746765,-24900.0,0.00010155,2]
[334113295,1722781746789,-250.0,0.00010179,2]
[334113296,1722781746817,-250.0,0.00010206,2]
[334113297,1722781746844,-250.0,0.00010234,2]
[334113298,1722781746866,-250.0,0.00010262,2]
[334113299,1722781746888,-250.0,0.00010289,2]
[334113300,1722781746910,-250.0,0.00010317,2]
[334113301,1722781746932,-250.0,0.00010345,2]
[334113302,1722781746954,-429.47,0.00010959,2]
[334113303,1722781746976,-546.86,0.00010959,2]
[334113304,1722781746997,-455.71,0.00010959,2]
[334113305,1722781747019,-379.76,0.00010959,2]
[334113306,1722781747041,-316.47,0.00010959,2]
[334113307,1722781747066,-263.72,0.00010959,2]
[334113308,1722781747088,-219.77,0.00010959,2]
[334113309,1722781747110,-420.0,0.00010998,2]
[334113310,1722781747132,-420.0,0.00010998,2]
[334113311,1722781747153,-400.0,0.0001137,2]
[334113312,1722781747174,-375.0,0.00012098,2]
[334113313,1722781747196,-1629.94046579,0.0001212,2]
[334113314,1722781747216,-225.04706201,0.0001212,2]
[334113315,1722781747238,-2595.15809524,0.000129,2]
[334113316,1722781747259,-600.0,0.00013373,2]
[334113317,1722781747281,-2595.15809524,0.00013379,2]
[334113318,1722781747303,-3260.08543218,0.00013424,5]
[334113319,1722781747329,-3531.55,0.00013424,2]
[334113320,1722781747350,-3486.67115206,0.00013489,2]
[334113321,1722781747373,-1540.84154913,0.00013598,2]
[334113322,1722781747396,-20710.2169848,0.00013688,2]
[334113323,1722781747418,-500.0,0.00013698,2]
[334113324,1722781747440,-500.0,0.00013698,2]
[334113325,1722781747463,-500.0,0.00013698,2]
[334113326,1722781747485,-500.0,0.00013698,2]
[334113327,1722781747507,-500.0,0.00013698,2]
[334113328,1722781747529,-500.0,0.00013698,2]
[334113329,1722781747550,-524.43319273,0.00013698,2]
[334113330,1722781747575,-500.0,0.00013698,2]
[334113331,1722781747597,-500.0,0.00013698,2]
[334113332,1722781747619,-255.14315066,0.00013698,2]
[334113333,1722781747645,-500.0,0.00013698,2]
[334113334,1722781747668,-500.0,0.00013698,2]
[334113335,1722781747692,-500.0,0.00013698,2]
[334113336,1722781747716,-515.32158002,0.00013698,2]
[334113337,1722781747739,-500.0,0.00013698,2]
[334113338,1722781747761,-500.0,0.00013698,2]
[334113339,1722781747782,-500.0,0.00013698,2]
[334113340,1722781747804,-500.0,0.00013698,2]
[334113341,1722781747828,-500.0,0.00013698,2]
[334113342,1722781747853,-500.0,0.00013698,2]
[334113343,1722781747875,-500.0,0.00013698,2]
[334113344,1722781747896,-500.0,0.00013698,2]
[334113345,1722781747919,-3805.9,0.00013698,2]
[334113346,1722781747941,-1341.92,0.00013698,2]
[334113347,1722781747963,-2497.13,0.00013698,2]
[334113348,1722781747985,-500.0,0.00013698,2]
[334113349,1722781748007,-500.0,0.00013698,2]
[334113350,1722781748031,-500.0,0.00013698,2]
[334113351,1722781748053,-500.0,0.00013698,2]
[334113352,1722781748079,-713.32,0.00013698,2]
[334113353,1722781748100,-500.0,0.00013698,2]
[334113354,1722781748122,-174.1864162,0.00013698,2]
[334113355,1722781748145,-500.0,0.00013698,2]
[334113356,1722781748169,-500.0,0.00013698,2]
[334113357,1722781748192,-500.0,0.00013698,2]
[334113358,1722781748214,-500.0,0.00013698,2]
[334113359,1722781748236,-500.0,0.00013698,2]
[334113360,1722781748257,-500.0,0.00013698,2]
[334113361,1722781748278,-500.0,0.00013698,2]
[334113362,1722781748300,-500.0,0.00013698,2]
[334113363,1722781748324,-500.0,0.00013698,2]
[334113364,1722781748345,-500.0,0.00013698,2]
[334113365,1722781748368,-500.0,0.00013698,2]
[334113366,1722781748390,-568.64,0.00013698,2]
[334113367,1722781748412,-500.0,0.00013698,2]
[334113368,1722781748433,-500.0,0.00013698,2]
[334113369,1722781748455,-500.0,0.00013698,2]
[334113370,1722781748476,-500.0,0.00013698,2]
[334113371,1722781748499,-500.0,0.00013698,2]
[334113372,1722781748520,-500.0,0.00013698,2]
[334113373,1722781748543,-500.0,0.00013698,2]
[334113374,1722781748568,-982.0,0.00013698,2]
[334113375,1722781748589,-500.0,0.00013698,2]
[334113376,1722781748611,-500.0,0.00013698,2]
[334113377,1722781748637,-500.0,0.00013698,2]
[334113378,1722781748659,-500.0,0.00013698,2]
[334113379,1722781748681,-500.0,0.00013698,2]
[334113380,1722781748704,-2948.05,0.00013698,2]
[334113381,1722781748730,-1037.9,0.00013698,2]
[334113382,1722781748751,-500.0,0.00013698,2]
[334113383,1722781748772,-500.0,0.00013698,2]
[334113384,1722781748796,-1583.41,0.00013698,2]
[334113385,1722781748820,-500.0,0.00013698,2]
[334113386,1722781748844,-1462.5,0.00013698,2]
[334113387,1722781748867,-573.42,0.00013698,2]
[334113388,1722781748888,-500.0,0.00013698,2]
[334113389,1722781748910,-500.0,0.00013698,2]
[334113390,1722781748933,-500.0,0.00013698,2]
[334113391,1722781748954,-500.0,0.00013698,2]
[334113392,1722781748975,-500.0,0.00013698,2]
[334113393,1722781748997,-500.0,0.00013698,2]
[334113394,1722781749021,-500.0,0.00013698,2]
[334113395,1722781749043,-528.95,0.00013698,2]
[334113396,1722781749068,-500.0,0.00013698,2]
[334113397,1722781749089,-500.0,0.00013698,2]
[334113398,1722781749112,-500.0,0.00013698,2]
[334113399,1722781749135,-500.0,0.00013698,2]
[334113400,1722781749160,-1009.11,0.00013698,2]
[334113401,1722781749184,-500.0,0.00013698,2]
[334113402,1722781749206,-500.0,0.00013698,2]
[334113403,1722781749228,-238.74,0.00013698,2]
[334113404,1722781749250,-1521.88,0.00013698,2]
[334113405,1722781749357,-500.0,0.00013698,2]
[334113406,1722781749398,-500.0,0.00013698,2]
[334113407,1722781749420,-500.0,0.00013698,2]
[334113408,1722781749442,-500.0,0.00013698,2]
[334113409,1722781749464,-500.0,0.00013698,2]
[334113410,1722781749486,-303.59071256,0.00013698,2]
[334113411,1722781749507,-500.0,0.00013698,2]
[334113412,1722781749531,-500.0,0.00013698,2]
[334113413,1722781749556,-500.0,0.00013698,2]
[334113414,1722781749580,-245.099678,0.00013699,2]
[334113415,1722781749601,-3000.0,0.00013699,2]
[334113416,1722781749622,-1540.84154911,0.00013838,2]
[334113417,1722781749649,-20710.2169848,0.00013962,2]
[334113418,1722781749672,-359.20795186,0.00013971,2]
[334113419,1722781749694,-213.15277238,0.00013971,2]
[334113420,1722781749720,-500.0,0.00013971,2]
[334113421,1722781749745,-500.0,0.00013971,2]
[334113422,1722781749767,-195.78171852,0.00013971,2]
[334113423,1722781749790,-500.0,0.00013971,2]
[334113424,1722781749816,-500.0,0.00013971,2]
[334113425,1722781749839,-500.0,0.00013971,2]
[334113426,1722781749862,-500.0,0.00013972,2]
[334113427,1722781749888,-500.0,0.00013972,2]
[334113428,1722781749912,-500.0,0.00013972,2]
[334113429,1722781749937,-500.0,0.00013972,2]
[334113430,1722781749962,-500.0,0.00013972,2]
[334113431,1722781749986,-500.0,0.00013972,2]
[334113432,1722781750009,-500.0,0.00013972,2]
[334113433,1722781750030,-500.0,0.00013972,2]
[334113434,1722781750053,-500.0,0.00013972,2]
[334113435,1722781750085,-250.31008896,0.00013972,2]
[334113436,1722781753211,-250.0,0.00010372,2]
[334113437,1722781753237,-250.0,0.000104,2]
[334113438,1722781753263,-250.0,0.00010428,2]
[334113439,1722781753288,-250.0,0.00010456,2]
[334113440,1722781753311,-250.0,0.00010483,2]
[334113441,1722781753338,-250.0,0.00010511,2]
[334113442,1722781753360,-250.0,0.00010539,2]
[334113443,1722781753383,-250.0,0.00010566,2]
[334113444,1722781753408,-250.0,0.00010594,2]
[334113445,1722781753433,-250.0,0.00010622,2]
[334113446,1722781753455,-396.0,0.00012098,2]
[334113447,1722781755351,183.14,0.00010959,2]
[334113448,1722781765933,152.62,0.00010959,2]
[334113450,1722781776713,763.11,0.00010959,2]
[334113451,1722781780728,155.03007539,0.0001212,2]
[334113452,1722781781758,201.22648727,0.0001212,2]
[334113453,1722781783151,154.85122775,0.0001212,2]
[334113454,1722781789574,603.79164827,0.0001212,2]
[334113455,1722781791506,118.67196264,0.0001212,2]
[334113456,1722781791529,16.76355445,0.0001212,2]
[334113494,1722781834197,-668.28805635,0.0001212,2]
[334113496,1722781834207,-376.7846896,0.0001212,2]
[334113498,1722781834217,-539.1682368,0.00013283,2]
[334113499,1722781834227,-154.89923821,0.00013283,2]
[334113500,1722781834237,-154.91162192,0.00013283,2]
[334113501,1722781834249,-403.74175046,0.00013283,2]
[334113502,1722781834400,-403.74175046,0.00013283,2]
[334113503,1722781834410,-500.0,0.00013698,2]
[334113504,1722781834420,-500.0,0.00013698,2]
[334113505,1722781834430,-500.0,0.00013698,2]
[334113506,1722781834440,-500.0,0.00013698,2]
[334113507,1722781834449,-500.0,0.00013698,2]
[334113508,1722781834459,-500.0,0.00013698,2]
[334113509,1722781834469,-500.0,0.00013698,2]